{"text_format":"1","workbook":"xlsx","n_sheets":49,"sheets":["Инструкция","Лог обновления","Титульный","Территории","ВД и СКИ","Форма 1.0.1 | Форма 4.7","Форма 4.7","Форма 1.0.2","Сведения об изменении","Комментарии","Проверка","modProv","modReestr","AllSheetsInThisWorkbook","modCheckCyan","modInfo","TEHSHEET","modList11","et_union_hor","et_union_vert","modList00","modList02","modList03","modList04","modList07","modList09","modHTTP","modfrmRegion","MR_LIST","REESTR_VT","REESTR_VED","modfrmReestrObj","DataOrg","modfrmReestr","modUpdTemplMain","REESTR_ORG","modClassifierValidate","modHyp","modfrmDateChoose","modComm","modThisWorkbook","REESTR_MO","REESTR_MO_FILTER","modfrmReestrMR","modServiceModule","modfrmCheckUpdates","REESTR_DS","REESTR_CHS","REESTR_LINK"],"not_rendered":{"charts":0,"images":23,"macros":1,"external_links":0,"defined_names":168,"comments":2,"pivot_tables":0},"unopened":[],"bounds":{"document_bytes":16777216,"sheet_cells":100000,"rows_first":2000,"rows_last":500,"rows_between":2000,"halvings":0,"cell_chars":16384,"cell_head_chars":4096},"cells_cut":0,"cells_raw":0,"read":"whole","date_system":"1900"}

{"sheet":"Инструкция","index":0,"n_rows":83,"n_cols":27,"rows_kept":83,"cut":false,"hidden":false,"merged":[[82,5,82,23],[60,7,60,23],[78,4,78,23],[72,5,72,23],[73,5,73,23],[74,4,74,23],[75,4,75,23],[76,4,76,23],[77,4,77,23],[69,4,69,19],[39,4,39,23],[40,4,44,23],[45,4,56,23],[80,5,80,18],[58,4,58,6],[58,7,58,23],[59,4,59,6],[71,5,71,23],[57,4,57,20],[70,4,70,19],[34,4,38,23],[22,15,22,22],[21,5,21,12],[1,1,1,6],[2,1,2,2],[4,1,4,24],[6,4,18,23],[20,5,20,12],[20,15,20,23],[21,15,21,23]]}
[null,null,null,null,null,null,null,null,null,null,null,null,null,null,null,null,null,null,null,null,null,null,null,null,null,null," (требуется обновление)"]
[null,{"$f":"\"Код шаблона: \" & GetCode()","v":"Код шаблона: FAS.JKH.OPEN.INFO.TERMS.WARM"}]
[null,{"$f":"\"Версия \" & GetVersion()","v":"Версия 1.0.1"}]
[]
[null,{"$f":"Титульный!E5","v":"Информация об условиях, на которых осуществляется поставка товаров (оказание услуг)"}]
[]
[null,null,null,null,"• На рабочем месте должен быть установлен MS Office 2007 SP3, 2010, 2013, 2016 с полной версией MS Excel\n\n• Макросы во время работы должны быть включены (!)\n\n• Для корректной работы отчёта требуется выбрать низкий уровень безопасности\n(В меню MS Excel 2007/2010/2013/2016: Параметры Excel | Центр управления безопасностью | Параметры центра управления безопасностью | Параметры макросов | Включить все макросы | ОК)\n\n• Если Вы работаете в табличном процессоре MS Excel 2007 и выше, то можете использовать для работы формат XLSB (Двоичная книга Excel). При работе в формате XLSB заметно быстрее происходит сохранение файла, а также уменьшается размер по сравнению с форматами XLS и XLSM\n\n• Не рекомендуется снимать защиту с листов и каким-либо образом модифицировать защищаемые формулы и расчётные поля, в противном случае, отчёт будет отклонён системой\n\n• При сохранении не следует выбирать формат XLSX (Книга Excel), так как в указанном формате макросы, необходимые для работы отчёта, безвозвратно удаляются"]
[]
[]
[]
[]
[]
[]
[]
[]
[]
[]
[]
[]
[]
[null,null,null,null,"A"," - не обязательные для заполнения",null,null,null,null,null,null,null,null,"A"," - с формулами и константами"]
[null,null,null,null,"A"," - обязательные для заполнения",null,null,null,null,null,null,null,null,"A"," - с выбором значений по двойному клику"]
[]
[]
[]
[]
[]
[]
[]
[]
[]
[]
[]
[]
[null,null,null,null,"Если в предложенном Вам списке необходимая организация, МР/МО отсутствуют, обновите реестры с помощью кнопок\n\nВ результате синхронизации с базой данных список организаций (МР/МО) будет заменён актуальным (механизм синхронизации требует подключения к сети Интернет и основан на использовании протокола HTTPS (TCP порт 443))\n\nЕсли после обновления Вам не удалось найти необходимую организацию в списке, обратитесь к ответственному за поддержание реестра Вашего региона."]
[]
[]
[]
[]
[]
[]
[]
[]
[]
[]
[null,null,null,null,"• При сохранении шаблона осуществляется проверка корректности данных, в том числе на наличие значений в ячейках, обязательных для заполнения\n\n• Если какая-то ячейка не удовлетворяет условию проверки, на лист «Проверка» добавляется гиперссылка на данную ячейку и указывается причина ошибки\n\n• В колонке «Статус» для каждого сообщения возможны 2 значения: ошибка и предупреждение\n\n• При наличии сообщений со статусом «Ошибка» шаблон будет отклонён системой и не будет загружен в хранилище данных, сообщения со статусом «Предупреждение» носят информационный характер, и такой шаблон будет принят системой"]
[]
[]
[]
[]
[]
[]
[]
[]
[]
[]
[]
[null,null,null,null,"Обратиться за помощью в службу технической поддержки"]
[]
[]
[]
[]
[]
[]
[]
[]
[]
[]
[]
[null,null,null,null,"Инструкция по загрузке сопроводительных материалов"]
[null,null,null,null,"Инструкция по работе с отчетной формой"]
[]
[]
[]
[]
[]
[]
[]
[null,null,null,null,"При наличии подключения к Интернет, можно автоматически проверять наличие доступных обновлений. Выберите способ оповещения о наличии обновлений для отчёта:"]
[]
[null,null,null,null,null,"проверять доступные обновления (рекомендуется)",null,null,null,null,null,null,null,null,null,null,null,null,null,null,null,null,null,null,null,null,"y"]
[]
[null,null,null,null,null,"никогда не проверять наличие обновлений (не рекомендуется)"]

{"sheet":"Лог обновления","index":1,"n_rows":15,"n_cols":3,"rows_kept":15,"cut":false,"hidden":true,"merged":[]}
["Дата/Время","Сообщение","Статус"]
["2020-05-26T20:59:34","Проверка доступных обновлений...","Информация"]
["2020-05-26T20:59:37","Нет доступных обновлений для отчёта с кодом FAS.JKH.OPEN.INFO.TERMS.WARM!","Информация"]
["2020-05-26T20:59:59","Проверка доступных обновлений...","Информация"]
["2020-05-26T21:00:00","Нет доступных обновлений для отчёта с кодом FAS.JKH.OPEN.INFO.TERMS.WARM!","Информация"]
["2020-05-26T21:00:42","Проверка доступных обновлений...","Информация"]
["2020-05-26T21:00:43","Нет доступных обновлений для отчёта с кодом FAS.JKH.OPEN.INFO.TERMS.WARM!","Информация"]
["2020-05-30T20:03:19","Проверка доступных обновлений...","Информация"]
["2020-05-30T20:03:21","Нет доступных обновлений для отчёта с кодом FAS.JKH.OPEN.INFO.TERMS.WARM!","Информация"]
["2020-05-30T22:01:06","Проверка доступных обновлений...","Информация"]
["2020-05-30T22:01:07","Нет доступных обновлений для отчёта с кодом FAS.JKH.OPEN.INFO.TERMS.WARM!","Информация"]
["2020-06-02T16:18:10","Проверка доступных обновлений...","Информация"]
["2020-06-02T16:18:12","Нет доступных обновлений для отчёта с кодом FAS.JKH.OPEN.INFO.TERMS.WARM!","Информация"]
["2020-06-02T16:20:32","Проверка доступных обновлений...","Информация"]
["2020-06-02T16:20:33","Нет доступных обновлений для отчёта с кодом FAS.JKH.OPEN.INFO.TERMS.WARM!","Информация"]

{"sheet":"Титульный","index":2,"n_rows":47,"n_cols":6,"rows_kept":47,"cut":false,"hidden":false,"merged":[[4,4,4,5],[46,4,46,5]]}
[null,null,null,null,null,30479512]
[]
[]
[null,null,null,null,null,{"$f":"version","v":"Версия 1.0.1"}]
[null,null,null,null,"Информация об условиях, на которых осуществляется поставка товаров (оказание услуг)"]
[]
[null,null,null,null,"Субъект РФ","Ставропольский край"]
[]
[null,null,null,null,"Публикация2","На сайте регулирующего органа"]
[]
[null,null,null,null,"Отсутствует Интернет в границах территории МО, где организация осуществляет регулируемые виды деятельности","нет"]
[]
[null,null,null,null,"Тип отчета","первичное раскрытие информации"]
[null,null,null,null,"Дата внесения изменений в информацию, подлежащую раскрытию","26.05.2020"]
[]
[null,null,null,null,"Применяется дифференциация тарифа по централизованным системам горячего водоснабжения?"]
[null,null,null,null,"Информация по скольким централизованным системам горячего водоснабжения будет заполнена в шаблоне?"]
[]
[]
[null,null,2019,null,"Отчётный период (год)",2019]
[]
[]
[null,null,null,null,"Является ли данное юридическое лицо подразделением (филиалом) другой организации","нет"]
[]
[]
[null,null,null,null,"Наименование организации","ИП Согоян Геворг Владимирович"]
[null,null,null,null,"Наименование филиала"]
[null,null,null,null,"ИНН","263410214911"]
[null,null,null,null,"КПП","отсутствует"]
[null,null,null,null,"Вид деятельности"]
[]
[null,null,null,null,"Тип теплоснабжающей организации","Регулируемая организация"]
[]
[null,null,null,null,"Организация осуществляет подключение (технологическое присоединение) к системе теплоснабжения","нет"]
[]
[null,null,null,null,"Почтовый адрес регулируемой организации","355006 г.Ставрополь, пр.К.Маркса, 59"]
[null,null,null,null,"Фамилия, имя, отчество руководителя","Согоян Геворг Владимирович"]
[]
[null,null,null,null,null,"Ответственный за составление формы"]
[null,null,null,null,"Фамилия, имя, отчество","Согоян Геворг Владимирович"]
[null,null,null,null,"Должность","ИП"]
[null,null,null,null,"(код) номер телефона","(8652)-26-71-69"]
[null,null,null,null,"e-mail","passaz26@mail.ru"]
[]
[]
[]
[null,null,null,null,"Информация об условиях, на которых осуществляется поставка товаров (оказание услуг) в ценовых зонах теплоснабжения по регулируемым ценам (тарифам) в сфере теплоснабжения, раскрывается единой теплоснабжающей организацией, теплоснабжающей организацией и теплосетевой организацией в ценовых зонах теплоснабжения не позднее 30 календарных дней со дня принятия соответствующего решения об установлении цен (тарифов) на очередной расчетный период регулирования (шаблон FAS.JKH.OPEN.INFO.PRICE.WARM)"]

{"sheet":"Территории","index":3,"n_rows":17,"n_cols":18,"rows_kept":17,"cut":false,"hidden":false,"merged":[[12,7,14,7],[11,2,15,2],[11,3,15,3],[11,4,15,4],[12,5,14,5],[12,6,14,6],[8,5,8,6],[8,8,8,9],[9,5,9,6],[9,8,9,9],[3,3,3,7],[5,3,5,4],[5,5,5,6],[7,3,7,4],[7,5,7,7],[7,8,7,11],[6,4,6,11]]}
[null,null,null,null,null,null,null,null,null,null,"МО","ОКТМО","МР"]
[]
[]
[null,null,null,"Перечень муниципальных районов и муниципальных образований (территорий оказания услуг)"]
[]
[null,null,null,null,null,"да"]
[]
[null,null,null,"Территория оказания услуг",null,"Муниципальный район",null,null,"Муниципальное образование"]
[null,null,null,"№ п/п","Наименование","№ п/п",null,"Наименование","№ п/п",null,"Наименование","ОКТМО"]
[null,null,null,"1","2","3",null,"4","5",null,"6","7"]
[null,null,null,0,null,"",null,null,"",null,null,null,"размерженный МР",null,null,"флаг используемости территории на листе Перечень тарифов","копия территорий","МР (ОКТМО)"]
[null,"auto",null,1,"Город Ставрополь, Город Ставрополь (07701000);","",0,null,"","0",null,null,{"$f":"mergeValue(H12)","v":0},null,null,{"$f":"IF(ISERROR(MATCH(MID(Q12,1,250),MID(note_ter,1,250),0)),\"n\",\"y\")","v":"y"},"Город Ставрополь, Город Ставрополь (07701000);",{"$f":"K12&\"(\"&L12&\")\"","v":"()"}]
[null,"auto",null,null,null,"",1,"Город Ставрополь","","0",null,null,{"$f":"mergeValue(H13)","v":"Город Ставрополь"},null,null,null,null,{"$f":"K13&\"(\"&L13&\")\"","v":"()"}]
[null,"auto",null,null,null,null,null,null,"",1,"Город Ставрополь","07701000",{"$f":"mergeValue(H14)","v":"Город Ставрополь"},null,null,null,null,{"$f":"K14&\" (\"&L14&\")\"","v":"Город Ставрополь (07701000)"}]
[null,null,null,null,null,null,null,null,"",null,""]
[null,null,null,null,null,"","","",""]
[null,"man",null,null,"","",null,null,"",null,null,null,null,null,null,null,"Добавить территорию оказания услуг"]

{"sheet":"ВД и СКИ","index":4,"n_rows":26,"n_cols":26,"rows_kept":26,"cut":false,"hidden":false,"merged":[[17,0,18,0],[17,3,17,4],[3,3,3,8],[4,3,4,8],[7,4,7,5],[8,1,8,3],[5,0,6,5],[7,1,7,3],[8,4,8,5],[9,1,9,3],[9,4,9,5],[13,1,13,3],[10,4,10,5],[10,1,10,3],[24,2,25,2],[11,1,11,3],[21,4,23,4],[21,5,23,5],[21,3,23,3],[17,5,17,8],[21,6,22,6],[21,7,22,7],[21,8,22,8],[21,9,22,9],[17,9,17,12],[19,6,19,7],[19,10,19,11],[18,10,18,11],[18,6,18,7]]}
[]
[]
[]
[null,null,null,{"$f":"Титульный!E5","v":"Информация об условиях, на которых осуществляется поставка товаров (оказание услуг)"}]
[null,null,null,{"$f":"IF(org=0,\"Не определено\",org)","v":"ИП Согоян Геворг Владимирович"}]
[]
[]
[]
[]
[]
[]
[]
[]
[]
[]
[]
[]
[null,null,null,"Вид деятельности",null,"Территория оказания услуг",null,null,null,"Централизованные системы коммунальной инфраструктуры"]
[null,null,null,"№ п/п","Наименование","да/нет","№ п/п",null,"Наименование","да/нет","№ п/п",null,"Наименование"]
[null,null,null,"1","2","3","4",null,"5","6","7",null,"8"]
[]
[null,null,null,"1","Производство тепловой энергии. Некомбинированная выработка","да",null,1,"Город Ставрополь, Город Ставрополь (07701000);","нет","","1","",null,null,null,null,null,null,null,null,null,null,4190064,"a",1705000]
[null,null,null,null,null,null,null,null,null,null,"",null,""]
[null,null,null,null,null,null,null,null,"",null,""]
[null,null,null,null,"",null,null,null,null,null,""]
[null,null,null,null,null,null,null,null,null,null,""]

{"sheet":"Форма 1.0.1 | Форма 4.7","index":5,"n_rows":20,"n_cols":7,"rows_kept":20,"cut":false,"hidden":false,"merged":[[19,4,19,5],[4,3,4,6],[5,3,5,6],[7,3,7,6],[8,3,8,5],[8,6,9,6]]}
[null,null,null,null,null,null,4]
[]
[]
[]
[null,null,null,"Форма 1.0.1 Основные параметры раскрываемой информации 1"]
[null,null,null,{"$f":"IF(org=0,\"Не определено\",org)","v":"ИП Согоян Геворг Владимирович"}]
[]
[null,null,22]
[null,null,null,"Параметры формы",null,null,"Описание параметров формы"]
["\\",null,null,"№ п/п",null,"Информация"]
[null,null,null,"1",2,3,4]
[null,null,null,1,"Дата заполнения/внесения изменений",{"$f":"IF(form_up_date=\"\",\"\",form_up_date)","v":"26.05.2020"},"Указывается календарная дата первичного заполнения или внесения изменений в форму в виде «ДД.ММ.ГГГГ»."]
[null,null,null,"2.1","Наименование централизованной системы коммунальной инфраструктуры","наименование отсутствует","Указывается наименование централизованной системы холодного водоснабжения/горячего водоснабжения/водоотведения/теплоснабжения, к которой относится размещаемая информация.\nВ случае наличия нескольких централизованных систем коммунальной инфраструктуры, информация по каждой из них указывается в отдельной строке. "]
[null,null,null,"3.1","Наименование регулируемого вида деятельности","Производство тепловой энергии. Некомбинированная выработка","Указывается наименование вида регулируемой деятельности."]
[null,null,null,"4.1","Территория оказания услуги по регулируемому виду деятельности","x"]
[null,null,null,{"$f":"D15&\".1\"","v":"4.1.1"},"Субъект РФ",{"$f":"IF(region_name=\"\",\"\",region_name)","v":"Ставропольский край"},"Указывается наименование субъекта Российской Федерации"]
[null,null,null,"4.1.1.1","муниципальный район","Город Ставрополь","Указывается наименование муниципального района, на территории которого организация оказывает услуги по регулируемому виду деятельности."]
[null,null,null,"4.1.1.1.1","муниципальное образование","Город Ставрополь (07701000)","Указывается наименование и код муниципального района, муниципального образования в соответствии с Общероссийским классификатором территорий муниципальных образований (далее - ОКТМО), входящего в муниципальный район, на территории которого организация оказывает услуги по регулируемому виду деятельности.\nВ случае оказания услуг по регулируемому виду деятельности на территории нескольких муниципальных районов (муниципальных образований) данные по каждому их них указываются в отдельной строке."]
[]
[null,null,null,null,"  1 Информация по данной форме публикуется при раскрытии информации по каждой из форм."]

{"sheet":"Форма 4.7","index":6,"n_rows":21,"n_cols":16,"rows_kept":21,"cut":false,"hidden":false,"merged":[[4,3,4,5],[6,3,6,5],[6,6,7,6],[11,6,12,6],[14,6,15,6]]}
[]
[]
[]
[]
[null,null,null,"Форма 4.7 Информация об условиях, на которых осуществляется поставка товаров и (или) оказание услуг"]
[]
[null,null,null,"Параметры формы",null,null,"Описание параметров формы"]
[null,null,null,"№ п/п","Наименование параметра","Ссылка на документ"]
[null,null,null,"1","2","3","4"]
[null,null,null,1,"Сведения об условиях публичных договоров поставок товаров, оказания услуг, в том числе договоров о подключении к системе теплоснабжения","x"]
[null,null,null,"1.1","форма публичного договора поставки товаров, оказания услуг","x"]
[null,null,null,"1.1.1","нет","https://portal.eias.ru/Portal/DownloadPage.aspx?type=12&guid=c8ff1fd2-c7b0-4dd4-a169-1d9f619604ef","Указывается форма договора, используемая регулируемой организацией, в виде ссылки на документ, предварительно загруженный в хранилище файлов ФГИС ЕИАС.\nВ случае наличия нескольких форм таких договоров информация по каждой из них указывается в отдельной строке."]
[null,null,null,null,"Добавить сведения"]
[null,null,null,"1.2","договор о подключении к системе теплоснабжения","x"]
[null,null,null,"1.2.1",null,null,"Информация размещается в случае, если организация осуществляет услуги по подключению (технологическому присоединению) к системе теплоснабжения.\nУказывается ссылка на документ, предварительно загруженный в хранилище файлов ФГИС ЕИАС.\nВ случае наличия нескольких договоров о подключении к системе теплоснабжения информация по каждому из них указывается в отдельной строке."]
[null,null,null,null,"Добавить сведения"]
[null,null,null,"1.3","прочие договора","x"]
[null,null,null,"1.3.0"]
[null,null,null,null,"Добавить сведения"]
[]
["","","","","","","","","","","","","","","",""]

{"sheet":"Форма 1.0.2","index":7,"n_rows":15,"n_cols":13,"rows_kept":15,"cut":false,"hidden":true,"merged":[[11,10,12,10],[14,4,14,9],[4,3,4,9],[7,3,7,9],[7,10,9,10],[8,3,9,3],[8,4,8,5],[8,6,8,9]]}
[]
[]
[]
[]
[null,null,null,"Форма 1.0.2 Информация о публикации в печатных изданиях 2"]
[]
[]
[null,null,null,"Параметры формы",null,null,null,null,null,null,"Описание параметров формы"]
[null,null,null,"№ п/п","Форма публикации",null,"Официальное печатное издание"]
[null,null,null,null,"Номер","Наименование","Наименование","Номер","Дата выпуска","Ссылка на документ"]
[null,null,null,"1","2","3","4","5","6","7","8"]
["3","",null,"1",null,null,null,null,null,null,"В колонке «Дата выпуска» дата выпуска печатного издания указывается в виде «ДД.ММ.ГГГГ».\nВ колонке «Ссылка на документ» указывается ссылка на отсканированную копию печатного издания, предварительно загруженную в хранилище федеральной государственной информационной системы «Единая информационно-аналитическая система «Федеральный орган регулирования - региональные органы регулирования - субъекты регулирования» (далее – ФГИС ЕИАС), с опубликованной информацией.\nВ случае публикации информации в нескольких печатных изданиях информация по каждому из них указывается в отдельной строке.",null,{"$f":"IF(ISERROR(INDEX(kind_of_nameforms,MATCH(E12,kind_of_forms,0),1)),\"\",INDEX(kind_of_nameforms,MATCH(E12,kind_of_forms,0),1))","v":""}]
[null,null,null,null,"Добавить строку"]
[]
[null,null,null,null,"2 В данной форме публикуется информация по каждой из форм раскрытия, данные в которой относятся к муниципальному образованию, в котором отсутствует доступ в информационно-телекоммуникационную сеть «Интернет» (далее – сеть «Интернет»)."]

{"sheet":"Сведения об изменении","index":8,"n_rows":14,"n_cols":5,"rows_kept":14,"cut":false,"hidden":true,"merged":[[6,3,6,4],[7,3,7,4]]}
[]
[]
[]
[]
[]
[]
[null,null,null,"Сведения об изменениях в первоначально опубликованной информации"]
[null,null,null,{"$f":"IF(org=0,\"Не определено\",org)","v":"ИП Согоян Геворг Владимирович"}]
[]
[null,null,null,"№ п/п","Сведения"]
[null,null,null,"1","2"]
[null,null,null,0]
[null,null,null,1]
[null,null,null,null,"Добавить строку"]

{"sheet":"Комментарии","index":9,"n_rows":13,"n_cols":5,"rows_kept":13,"cut":false,"hidden":false,"merged":[[6,3,6,4],[7,3,7,4]]}
[]
[]
[]
[]
[]
[]
[null,null,null,"Комментарии"]
[null,null,null,{"$f":"IF(org=0,\"Не определено\",org)","v":"ИП Согоян Геворг Владимирович"}]
[]
[null,null,null,"№ п/п","Комментарий"]
[null,null,null,"1","2"]
[null,null,null,0]
[null,null,null,null,"Добавить"]

{"sheet":"Проверка","index":10,"n_rows":4,"n_cols":5,"rows_kept":4,"cut":false,"hidden":false,"merged":[[1,1,1,4]]}
[]
[null,"Результат проверки"]
[]
[null,"Ссылка1","Ссылка2","Причина","Статус"]

{"sheet":"modProv","index":11,"n_rows":0,"n_cols":0,"rows_kept":0,"cut":false,"hidden":true,"merged":[]}

{"sheet":"modReestr","index":12,"n_rows":0,"n_cols":0,"rows_kept":0,"cut":false,"hidden":true,"merged":[]}

{"sheet":"AllSheetsInThisWorkbook","index":13,"n_rows":39,"n_cols":2,"rows_kept":39,"cut":false,"hidden":true,"merged":[]}
["Расчетные листы","Скрытые листы"]
["Инструкция","modProv"]
["Лог обновления","modReestr"]
["Титульный","AllSheetsInThisWorkbook"]
["Территории","modCheckCyan"]
["ВД и СКИ","modInfo"]
["Форма 1.0.1 | Форма 4.7","TEHSHEET"]
["Форма 4.7","modList11"]
["Форма 1.0.2","et_union_hor"]
["Сведения об изменении","et_union_vert"]
["Комментарии","modList00"]
["Проверка","modList02"]
[null,"modList03"]
[null,"modList04"]
[null,"modList07"]
[null,"modList09"]
[null,"modHTTP"]
[null,"modfrmRegion"]
[null,"MR_LIST"]
[null,"REESTR_VT"]
[null,"REESTR_VED"]
[null,"modfrmReestrObj"]
[null,"DataOrg"]
[null,"modfrmReestr"]
[null,"modUpdTemplMain"]
[null,"REESTR_ORG"]
[null,"modClassifierValidate"]
[null,"modHyp"]
[null,"modfrmDateChoose"]
[null,"modComm"]
[null,"modThisWorkbook"]
[null,"REESTR_MO"]
[null,"REESTR_MO_FILTER"]
[null,"modfrmReestrMR"]
[null,"modServiceModule"]
[null,"modfrmCheckUpdates"]
[null,"REESTR_DS"]
[null,"REESTR_CHS"]
[null,"REESTR_LINK"]

{"sheet":"modCheckCyan","index":14,"n_rows":14,"n_cols":1,"rows_kept":14,"cut":false,"hidden":true,"merged":[]}
[{"$f":"IF('ВД и СКИ'!$E$22=\"\",1,0)","v":0}]
[{"$f":"IF('ВД и СКИ'!$F$22=\"\",1,0)","v":0}]
[{"$f":"IF('ВД и СКИ'!$J$22=\"\",1,0)","v":0}]
[{"$f":"IF('Форма 4.7'!$E$12=\"\",1,0)","v":0}]
[{"$f":"IF('Форма 4.7'!$F$12=\"\",1,0)","v":0}]
[{"$f":"IF('Форма 1.0.2'!$E$12=\"\",1,0)","v":1}]
[{"$f":"IF('Форма 1.0.2'!$F$12=\"\",1,0)","v":1}]
[{"$f":"IF('Форма 1.0.2'!$G$12=\"\",1,0)","v":1}]
[{"$f":"IF('Форма 1.0.2'!$H$12=\"\",1,0)","v":1}]
[{"$f":"IF('Форма 1.0.2'!$I$12=\"\",1,0)","v":1}]
[{"$f":"IF('Форма 1.0.2'!$J$12=\"\",1,0)","v":1}]
[{"$f":"IF('Сведения об изменении'!$E$13=\"\",1,0)","v":1}]
[{"$f":"IF(Территории!$E$12=\"\",1,0)","v":0}]
[{"$f":"IF('ВД и СКИ'!$I$22=\"\",1,0)","v":0}]

{"sheet":"modInfo","index":15,"n_rows":11,"n_cols":2,"rows_kept":11,"cut":false,"hidden":true,"merged":[[4,3,4,10],[0,3,0,10],[1,3,1,10],[2,3,2,10],[3,3,3,10]]}
[null,"Территории"]
[1,"Наименование территории оказания услуг для целей идентификации"]
[2,"Муниципальные районы и муниципальные образования, на территории которых осуществляется оказание услуг"]
[null,"Дифференциация"]
[1,"В случае, если регулируемая организация осуществляет несколько видов деятельности, информация о которых подлежит раскрытию, информация по каждому виду деятельности раскрывается отдельно."]
[2,"Поле заполняется выбором значений из списка. Если значений для выбора нет - убедитесь, что лист \"Территории\" заполнен."]
[3,"Условное наименование централизованной системы коммунальной инфраструктуры для целей идентификации."]
[4,"В случае, если регулируемыми организациями оказываются услуги по нескольким технологически не связанным между собой  централизованным системам коммунальной инфраструктуры и если в отношении указанных централизованных систем устанавливаются различные тарифы, то информация раскрывается отдельно по каждой централизованной системе коммунальной инфраструктуры."]
[null,"Сведения об изменении"]
[1,"Лист заполняется в случае, если на Титульном листе в поле \"Тип отчета\" выбрано значение «Изменения в раскрытой ранее информации»."]
[null,"Нет доступных обновлений, версия отчёта актуальна"]

{"sheet":"TEHSHEET","index":16,"n_rows":87,"n_cols":26,"rows_kept":87,"cut":false,"hidden":true,"merged":[[0,18,0,19],[0,21,0,22]]}
["REGION",null,"year_list","logical","Месяц\n(MONTH)","Квартал\n(QUARTER)","Месяц\n(kind_of_publication)","Единица измерения объема оказываемых услуг ГВС\n/kind_of_unit_GVS/","Вид тарифа\n/list_of_tariff/","mr_id","версия шаблона\n (DocProp_Version)","0.1","Тип отчета\ndata_type",null,"Источники финансирования\n/source_of_funding/","цель инвестиционной программы /kind_of_purchase_method/",null,null,"Перечень форм\n(kind_of_forms)",null,null,"цель инвестиционной программы /objective_of_IPR/",null,null,null,"Тип организации\nkind_of_org_type"]
["Алтайский край",null,2017,"да","январь","I квартал","На официальном сайте организации","тыс.куб.м/сутки",null,52,"код шаблона\n(DocProp_TemplateCode)","FAS.JKH.OPEN.INFO.TERMS.WARM","первичное раскрытие информации",null,"кредиты банков","Торги/аукционы",null,null,"Форма 1.0.1","Основные параметры раскрываемой информации",null,"автоматизация (с уменьшением штата)",false,null,null,"Регулируемая организация"]
["Амурская область",null,2018,"нет","февраль","II квартал","На сайте регулирующего органа","Гкал/час","Без дифференциации","sys_id","сфера\n(TSphere)","ТС","изменения в раскрытой ранее информации",null,"кредиты иностранных банков","Прямые договора без торгов",null,null,"Форма 4.7","Информация об условиях, на которых осуществляется поставка товаров и (или) оказание услуг",null,"уменьшение удельных затрат (повышение КПД)",false,null,null,"Единая теплоснабжающая организация в ценовой зоне теплоснабжения"]
["Архангельская область",null,2019,null,"март","III квартал",null,"куб.м/час",null,104,"сфера(латиница)\n(TSphere_trans)","WARM",null,null,"заемные средства др. организаций","Прочее",null,null,null,null,null,"уменьшение издержек на производство",false,null,null,"Теплоснабжающая организация в ценовой зоне теплоснабжения"]
["Астраханская область",null,2020,null,"апрель","IV квартал",null,null,null,null,"сфера расширено\n(TSphere_full)",null,null,null,"федеральный бюджет",null,null,null,null,null,null,"снижение аварийности",false,null,null,"Теплосетевая организация в ценовой зоне теплоснабжения"]
["Белгородская область",null,null,null,"май",null,null,null,null,null,null,null,null,null,"бюджет субъекта Российской Федерации",null,null,null,null,null,null,"прочее",false]
["Брянская область",null,null,null,"июнь",null,null,null,null,null,null,null,null,null,"бюджет муниципального образования"]
["Владимирская область",null,null,null,"июль",null,null,null,null,null,"true",null,null,null,"средства внебюджетных фондов"]
["Волгоградская область",null,null,null,"август",null,null,null,null,null,null,null,null,null,"прибыль, направленная на инвестиции"]
["Вологодская область",null,null,null,"сентябрь",null,null,null,null,null,null,null,null,null,"амортизация"]
["Воронежская область",null,null,null,"октябрь",null,null,null,null,null,null,null,null,null,"инвестиционная надбавка к тарифу"]
["г.Байконур",null,null,null,"ноябрь",null,null,null,null,null,null,null,null,null,"плата за подключение (технологическое присоединение)"]
["г. Москва",null,null,null,"декабрь",null,null,null,null,null,null,null,null,null,"прочие средства"]
["г.Санкт-Петербург"]
["г.Севастополь"]
["Еврейская автономная область",null,null,null,null,null,"Текущая дата"]
["Забайкальский край",null,"Организация",{"$f":"IF(f_year = \"\",\"\", \"01.01.\"&f_year)","v":"01.01.2019"},{"$f":"IF(f_year = \"\",\"\",\"31.12.\"& f_year)","v":"31.12.2019"},null,"31.05.2020 3:01:36"]
["Ивановская область"]
["Иркутская область",null,null,null,null,null,"Признак изменения данных на листе Доступ к товарам и услугам"]
["Кабардино-Балкарская республика",null,"Виды деятельности",null,null,null,true]
["Калининградская область"]
["Калужская область"]
["Камчатский край"]
["Карачаево-Черкесская республика"]
["Кемеровская область"]
["Кировская область"]
["Костромская область"]
["Краснодарский край"]
["Красноярский край"]
["Курганская область"]
["Курская область"]
["Ленинградская область"]
["Липецкая область"]
["Магаданская область"]
["Московская область"]
["Мурманская область"]
["Ненецкий автономный округ"]
["Нижегородская область"]
["Новгородская область"]
["Новосибирская область"]
["Омская область"]
["Оренбургская область"]
["Орловская область"]
["Пензенская область"]
["Пермский край"]
["Приморский край"]
["Псковская область"]
["Республика Адыгея"]
["Республика Алтай"]
["Республика Башкортостан"]
["Республика Бурятия"]
["Республика Дагестан"]
["Республика Ингушетия"]
["Республика Калмыкия"]
["Республика Карелия"]
["Республика Коми"]
["Республика Крым"]
["Республика Марий Эл"]
["Республика Мордовия"]
["Республика Саха (Якутия)"]
["Республика Северная Осетия-Алания"]
["Республика Татарстан"]
["Республика Тыва"]
["Республика Хакасия"]
["Ростовская область"]
["Рязанская область"]
["Самарская область"]
["Саратовская область"]
["Сахалинская область"]
["Свердловская область"]
["Смоленская область"]
["Ставропольский край"]
["Тамбовская область"]
["Тверская область"]
["Томская область"]
["Тульская область"]
["Тюменская область"]
["Удмуртская республика"]
["Ульяновская область"]
["Хабаровский край"]
["Ханты-Мансийский автономный округ"]
["Челябинская область"]
["Чеченская республика"]
["Чувашская республика"]
["Чукотский автономный округ"]
["Ямало-Ненецкий автономный округ"]
["Ярославская область"]

{"sheet":"modList11","index":17,"n_rows":0,"n_cols":0,"rows_kept":0,"cut":false,"hidden":true,"merged":[]}

{"sheet":"et_union_hor","index":18,"n_rows":66,"n_cols":26,"rows_kept":66,"cut":false,"hidden":true,"merged":[[19,7,20,7],[28,3,30,3],[28,4,30,4],[28,5,30,5],[28,6,29,6],[28,7,29,7],[34,7,35,7],[34,8,35,8],[34,9,35,9],[28,8,29,8],[28,9,29,9],[50,3,50,5],[50,6,51,6],[14,2,15,2],[14,3,15,3],[14,4,15,4],[19,2,20,2],[19,5,20,5],[34,6,35,6],[19,6,20,6],[49,3,49,6]]}
[]
[]
["et_Comm"]
[]
[]
[]
["et_List04"]
[]
[]
[]
[]
[]
["et_List09_0"]
[]
[null,"auto",null,1,null,null,0,null,null,"0",null,null,{"$f":"mergeValue(H15)","v":0},null,null,{"$f":"IF(ISERROR(MATCH(MID(Q15,1,250),MID(note_ter,1,250),0)),\"n\",\"y\")","v":"y"},null,{"$f":"K15&\"(\"&L15&\")\"","v":"()"}]
[null,null,null,null,null,null,null,"Добавить МР"]
[]
["et_List09_1"]
[]
[null,"auto",null,null,null,null,0,null,null,"0",null,null,{"$f":"mergeValue(H20)","v":0},null,null,null,null,{"$f":"K20&\"(\"&L20&\")\"","v":"()"}]
[null,null,null,null,null,null,null,null,null,null,"Добавить МО"]
[]
["et_List09_2"]
[]
[null,"auto",null,null,null,null,null,null,null,0,null,null,{"$f":"mergeValue(H25)","v":0},null,null,null,null,{"$f":"K25&\" (\"&L25&\")\"","v":" ()"}]
[]
["et_List07_1"]
[]
[null,null,null,"1",null,"нет",null,1,null,"нет",null,"1",null,null,null,null,null,null,null,null,null,null,null,null,"a",1705000]
[null,null,null,null,null,null,null,null,null,null,null,null,"Добавить централизованную систему коммунальной инфраструктуры"]
[null,null,null,null,null,null,null,null,"Добавить описание территории оказания услуг"]
[]
["et_List07_4"]
[]
[null,null,null,null,null,null,null,1,null,"нет",null,"1",null,null,null,null,null,null,null,null,null,null,null,null,"a",1705000]
[null,null,null,null,null,null,null,null,null,null,null,null,"Добавить централизованную систему коммунальной инфраструктуры"]
[]
["et_List07_5"]
[]
[null,null,null,null,null,null,null,null,null,null,null,"1",null,null,null,null,null,null,null,null,null,null,null,null,"a",1705000]
[]
[]
["et_List03"]
[]
["3","",null,null,null,null,null,null,null,null,null,null,{"$f":"IF(ISERROR(INDEX(kind_of_nameforms,MATCH(E45,kind_of_forms,0),1)),\"\",INDEX(kind_of_nameforms,MATCH(E45,kind_of_forms,0),1))","v":""}]
[]
["et_List02_st","et_List02_ter","et_List02_mr","et_List02_mo"]
[]
[]
[]
[null,null,null,"Параметры формы",null,null,"Описание параметров формы"]
["\\",null,null,"№ п/п",null,"Информация"]
[null,null,null,"1",2,3,4]
[null,null,null,1,"Дата заполнения/внесения изменений",{"$f":"IF(form_up_date=\"\",\"\",form_up_date)","v":"26.05.2020"},"Указывается календарная дата первичного заполнения или внесения изменений в форму в виде «ДД.ММ.ГГГГ»."]
[null,null,null,"2.1","Наименование централизованной системы коммунальной инфраструктуры",null,"Указывается наименование централизованной системы холодного водоснабжения/горячего водоснабжения/водоотведения/теплоснабжения, к которой относится размещаемая информация.\nВ случае наличия нескольких централизованных систем коммунальной инфраструктуры, информация по каждой из них указывается в отдельной строке. "]
[null,null,null,"3.1","Наименование регулируемого вида деятельности",null,"Указывается наименование вида регулируемой деятельности."]
[null,null,null,"4.1","Территория оказания услуги по регулируемому виду деятельности","x"]
[null,null,null,{"$f":"D57&\".1\"","v":"4.1.1"},"Субъект РФ",{"$f":"IF(region_name=\"\",\"\",region_name)","v":"Ставропольский край"},"Указывается наименование субъекта Российской Федерации"]
[null,null,null,"4.1.1.1","муниципальный район",null,"Указывается наименование муниципального района, на территории которого организация оказывает услуги по регулируемому виду деятельности."]
[null,null,null,"4.1.1.1.1","муниципальное образование",null,"Указывается наименование и код муниципального района, муниципального образования в соответствии с Общероссийским классификатором территорий муниципальных образований (далее - ОКТМО), входящего в муниципальный район, на территории которого организация оказывает услуги по регулируемому виду деятельности.\nВ случае оказания услуг по регулируемому виду деятельности на территории нескольких муниципальных районов (муниципальных образований) данные по каждому их них указываются в отдельной строке."]
[]
[]
[]
[]
[]
["et_List11_1"]

{"sheet":"et_union_vert","index":19,"n_rows":0,"n_cols":0,"rows_kept":0,"cut":false,"hidden":true,"merged":[]}

{"sheet":"modList00","index":20,"n_rows":0,"n_cols":0,"rows_kept":0,"cut":false,"hidden":true,"merged":[]}

{"sheet":"modList02","index":21,"n_rows":0,"n_cols":0,"rows_kept":0,"cut":false,"hidden":true,"merged":[]}

{"sheet":"modList03","index":22,"n_rows":0,"n_cols":0,"rows_kept":0,"cut":false,"hidden":true,"merged":[]}

{"sheet":"modList04","index":23,"n_rows":0,"n_cols":0,"rows_kept":0,"cut":false,"hidden":true,"merged":[]}

{"sheet":"modList07","index":24,"n_rows":0,"n_cols":0,"rows_kept":0,"cut":false,"hidden":true,"merged":[[5,0,6,1],[17,0,18,0]]}

{"sheet":"modList09","index":25,"n_rows":0,"n_cols":0,"rows_kept":0,"cut":false,"hidden":true,"merged":[]}

{"sheet":"modHTTP","index":26,"n_rows":0,"n_cols":0,"rows_kept":0,"cut":false,"hidden":true,"merged":[]}

{"sheet":"modfrmRegion","index":27,"n_rows":0,"n_cols":0,"rows_kept":0,"cut":false,"hidden":true,"merged":[]}

{"sheet":"MR_LIST","index":28,"n_rows":0,"n_cols":0,"rows_kept":0,"cut":false,"hidden":true,"merged":[]}

{"sheet":"REESTR_VT","index":29,"n_rows":0,"n_cols":0,"rows_kept":0,"cut":false,"hidden":true,"merged":[]}

{"sheet":"REESTR_VED","index":30,"n_rows":11,"n_cols":2,"rows_kept":11,"cut":false,"hidden":true,"merged":[]}
["ID_TARIFF_NAME","VED_NAME"]
[4190064,"Производство тепловой энергии. Некомбинированная выработка"]
[4190065,"Производство тепловой энергии. Комбинированная выработка с уст. мощностью производства электрической энергии менее 25 МВт"]
[4190066,"Производство тепловой энергии. Комбинированная выработка с уст. мощностью производства электрической энергии 25 МВт и более"]
[4190067,"Производство. Теплоноситель"]
[4190068,"Передача. Тепловая энергия"]
[4190069,"Передача. Теплоноситель"]
[4190070,"Сбыт. Тепловая энергия"]
[4190071,"Сбыт. Теплоноситель"]
[4190072,"Подключение (технологическое присоединение) к системе теплоснабжения"]
[4190073,"Поддержание резервной тепловой мощности при отсутствии потребления тепловой энергии"]

{"sheet":"modfrmReestrObj","index":31,"n_rows":0,"n_cols":0,"rows_kept":0,"cut":false,"hidden":true,"merged":[]}

{"sheet":"DataOrg","index":32,"n_rows":0,"n_cols":0,"rows_kept":0,"cut":false,"hidden":true,"merged":[]}

{"sheet":"modfrmReestr","index":33,"n_rows":0,"n_cols":0,"rows_kept":0,"cut":false,"hidden":true,"merged":[]}

{"sheet":"modUpdTemplMain","index":34,"n_rows":0,"n_cols":0,"rows_kept":0,"cut":false,"hidden":true,"merged":[]}

{"sheet":"REESTR_ORG","index":35,"n_rows":80,"n_cols":10,"rows_kept":80,"cut":false,"hidden":true,"merged":[]}
["№","REGION_ID","REGION_NAME","RST_ORG_ID","ORG_NAME","INN_NAME","KPP_NAME","ORG_START_DATE","ORG_END_DATE"]
[1,"2627","Ставропольский край","26419409","АО \"Невинномысский Азот\"","2631015563","263101001","31-12-1992 00:00:00",null,"WARM"]
[2,"2627","Ставропольский край","26850785","АО \"ПТЭК\"","2632800936","263201001","10-05-2011 00:00:00",null,"WARM"]
[3,"2627","Ставропольский край","26838066","АО \"РЭУ\"","7714783092","770401001",null,null,"WARM"]
[4,"2627","Ставропольский край","26417110","АО \"СКЭРК\"","0721009031","263145001",null,null,"WARM"]
[5,"2627","Ставропольский край","26897146","АО \"Ставропласт\"","2630000067","263001001","21-06-2011 00:00:00",null,"WARM"]
[6,"2627","Ставропольский край","26355174","АО \"Ставропольсахар\"","2607012219","260701001","07-07-1999 00:00:00",null,"WARM"]
[7,"2627","Ставропольский край","26355198","АО \"Теплосеть\" г. Невинномысск","2631054298","263101001",null,null,"WARM"]
[8,"2627","Ставропольский край","26355211","АО \"Теплосеть\" г. Ставрополь","2635095930","263501001","13-12-2006 00:00:00",null,"WARM"]
[9,"2627","Ставропольский край","26355187","АО \"Хлебокомбинат \"Георгиевский\"","2625012571","262501001","29-10-1992 00:00:00",null,"WARM"]
[10,"2627","Ставропольский край","26355189","АО \"ЭНЕРГОРЕСУРСЫ\"","2626020720","262601001","29-07-1994 00:00:00",null,"WARM"]
[11,"2627","Ставропольский край","31076067","ВНИИОК- филиал ФГБНУ \"Северо-Кавказский ФНАЦ\" г.Ставрополь","2623000997","263443001",null,null,"WARM"]
[12,"2627","Ставропольский край","28118061","ГБПОУ ЖХСТ","2627012954","262701001","15-02-2012 00:00:00",null,"WARM"]
[13,"2627","Ставропольский край","31246558","ГБПОУ ПАТТ","2624000742","262401001","11-12-2002 00:00:00",null,"WARM"]
[14,"2627","Ставропольский край","26355222","ГБУЗ СК \"ККБ\"","2630019702","263001001","10-04-1996 00:00:00",null,"WARM"]
[15,"2627","Ставропольский край","26355214","ГКУЗ \"Ставропольский краевой госпиталь для ветеранов войн\"","2632055946","263201001","26-05-2011 00:00:00",null,"WARM"]
[16,"2627","Ставропольский край","26355176","ГУП СК \"ЖКХ Кировского района\"","2609014934","260901001","28-10-1997 00:00:00",null,"WARM"]
[17,"2627","Ставропольский край","26355225","ГУП СК \"Крайтеплоэнерго\"","2635060510","263501001","16-01-2002 00:00:00",null,"WARM"]
[18,"2627","Ставропольский край","26371332","ГУП СК \"Ставрополькрайводоканал\"","2635040105","263401001","18-11-1997 00:00:00",null,"WARM"]
[19,"2627","Ставропольский край","26355185","ГУП СК \"Теплосеть\"","2625002189","262501001",null,null,"WARM"]
[20,"2627","Ставропольский край","26355213","ЗАО \"Гермес-52\"","2633002369","263501001",null,null,"WARM"]
[21,"2627","Ставропольский край","26355210","ЗАО \"Пассаж\"","2633001132","263601001",null,null,"WARM"]
[22,"2627","Ставропольский край","26360929","ЗАО \"ЮЭК\" филиал в г. Лермонтов Ставропольского края","7704262319","262902001","23-05-2003 00:00:00",null,"WARM"]
[23,"2627","Ставропольский край","30370933","ИП Гукасян Владимир Александрович","263603503719","отсутствует","24-06-2015 00:00:00",null,"WARM"]
[24,"2627","Ставропольский край","29649010","ИП Кашурина Дарья Андреевна","263408566507","отсутствует","14-09-2015 00:00:00",null,"WARM"]
[25,"2627","Ставропольский край","30479512","ИП Согоян Геворг Владимирович","263410214911","отсутствует","24-12-2015 00:00:00",null,"WARM"]
[26,"2627","Ставропольский край","26414029","КП СК «Надежда»","2617013148","261701001","04-02-2008 00:00:00",null,"WARM"]
[27,"2627","Ставропольский край","26355205","ЛПУП  Санаторий \"РОДНИК\"","2632053836","263201001","29-06-1999 00:00:00",null,"WARM"]
[28,"2627","Ставропольский край","26355207","ЛПУП \"Пятигорская бальнеогрязелечебница\"","2632054854","263201001","14-11-2002 00:00:00",null,"WARM"]
[29,"2627","Ставропольский край","26355172","МУП \"КХ\" Грачёвского муниципального района Ставропольского края","2606000122","260601001","15-09-2008 00:00:00",null,"WARM"]
[30,"2627","Ставропольский край","26355182","МУП \"КХ\" Степновского муниципального района Ставропольского края","2620000580","262001001","26-05-2009 00:00:00",null,"WARM"]
[31,"2627","Ставропольский край","28450562","МУП \"Комбытсервис\" с. Ладовская Балка","2611007282","261101001","08-10-2003 00:00:00",null,"WARM"]
[32,"2627","Ставропольский край","26383213","МУП \"Лермонтовгоргаз\"","2629005046","262901001","21-11-2002 00:00:00",null,"WARM"]
[33,"2627","Ставропольский край","26355192","МУП \"Теплосеть\" г. Железноводск","2627007954","262701001",null,null,"WARM"]
[34,"2627","Ставропольский край","26526815","МУП ЖКХ Александровского района","2601004596","260101001","08-09-1998 00:00:00",null,"WARM"]
[35,"2627","Ставропольский край","26355178","МУП КМР СК « ЖКХ Курского района»","2612016970","261201001","08-08-2002 00:00:00",null,"WARM"]
[36,"2627","Ставропольский край","26355171","МУП КХ Арзгирского района","2604000247","260401001","03-07-2000 00:00:00",null,"WARM"]
[37,"2627","Ставропольский край","26355183","МУП КХ Туркменского района","2622003515","262201001","28-07-2006 00:00:00",null,"WARM"]
[38,"2627","Ставропольский край","26355177","МУП СК ЖКХ Кочубеевского района","2610012931","261001001","19-05-2009 00:00:00",null,"WARM"]
[39,"2627","Ставропольский край","26355197","ОАО \"Квант-Энергия\"","2631002155","263101001","13-12-1994 00:00:00",null,"WARM"]
[40,"2627","Ставропольский край","26800337","ОАО \"Международный аэропорт Минеральные Воды\"","2630800970","263001001","25-01-2012 00:00:00",null,"WARM"]
[41,"2627","Ставропольский край","27507656","ОАО \"РЭУ\" Филиал Владикавказский","7714783092","151543001","18-06-2009 00:00:00",null,"WARM"]
[42,"2627","Ставропольский край","26355194","ОАО \"Теплосеть\" г. Кисловодск","2628008414","262801001",null,null,"WARM"]
[43,"2627","Ставропольский край","30479236","ООО \"Газпром Теплоэнерго Кисловодск\"","2628057299","262801001","20-04-2016 00:00:00",null,"WARM"]
[44,"2627","Ставропольский край","31022141","ООО \"Горизонт\"","2616008378","772701001",null,null,"WARM"]
[45,"2627","Ставропольский край","26355170","ООО \"ККЭБСЕ\" филиал в селе Солуно-Дмитриевское","7701215046","525801001","15-04-1999 00:00:00",null,"WARM"]
[46,"2627","Ставропольский край","31062553","ООО \"КомС плюс\"","2602006892","260201001","26-06-2017 00:00:00",null,"WARM"]
[47,"2627","Ставропольский край","31235882","ООО \"Коммунальное хозяйство\" Туркменского муниципального района Ставропольского края","2622005600","262201001","02-07-2018 00:00:00",null,"WARM"]
[48,"2627","Ставропольский край","27567409","ООО \"ЛУКОЙЛ-Ставропольэнерго\"","2624033219","262401001","01-08-2011 00:00:00",null,"WARM"]
[49,"2627","Ставропольский край","26355193","ООО \"Объединение котельных курорта\" г. Железноводск","2627016807","262701001",null,null,"WARM"]
[50,"2627","Ставропольский край","26355190","ООО \"Объединение котельных курорта\" г.Ессентуки","2626027362","262601001",null,null,"WARM"]
[51,"2627","Ставропольский край","26355209","ООО \"Пятигорсктеплосервис\"","2632062277","263201001",null,null,"WARM"]
[52,"2627","Ставропольский край","26891086","ООО \"Ритм-Б\"","2636032690","263501001","22-04-2011 00:00:00",null,"WARM"]
[53,"2627","Ставропольский край","28952051","ООО \"СКС\"","2607000284","260701001","10-03-2015 00:00:00",null,"WARM"]
[54,"2627","Ставропольский край","26355203","ООО \"Санаторий \"Тарханы\"","2632012646","263201001",null,null,"WARM"]
[55,"2627","Ставропольский край","26893305","ООО \"Сфера\"","2601009756","260101001","25-02-2011 00:00:00",null,"WARM"]
[56,"2627","Ставропольский край","26355208","ООО \"ТЕХНО-Сервис\"","2632059130","263201001",null,null,"WARM"]
[57,"2627","Ставропольский край","28535957","ООО \"Теплосервис-КМВ\"","2625800847","262501001","06-02-2012 00:00:00",null,"WARM"]
[58,"2627","Ставропольский край","30853665","ООО \"Теплоснаб-НШК\"","2631806212","263101001","21-11-2014 00:00:00",null,"WARM"]
[59,"2627","Ставропольский край","31311400","ООО \"Теплострой\"","2625033363","262501001","11-05-2007 00:00:00",null,"WARM"]
[60,"2627","Ставропольский край","26891277","ООО \"Теплый дом\"","2601009690","260101001","11-01-2011 00:00:00",null,"WARM"]
[61,"2627","Ставропольский край","27882380","ООО \"ЭНЕРГЕТИК\" (котельная \"Машук\" в г. Пятигорске)","2618800660","261801001","26-03-2012 00:00:00",null,"WARM"]
[62,"2627","Ставропольский край","31369128","ООО \"ЭНЕРГИЯ\"","2630049200","263001001","19-06-2019 00:00:00",null,"WARM"]
[63,"2627","Ставропольский край","31335320","ООО \"Юг-Ресурс\"","0901047734","090101001",null,null,"WARM"]
[64,"2627","Ставропольский край","26355224","ООО «Газпром трансгаз Ставрополь»","2636032629","263601001","30-06-1999 00:00:00",null,"WARM"]
[65,"2627","Ставропольский край","30875804","ООО УК \"Он и к\"","2628039437","262801001","20-07-2000 00:00:00",null,"WARM"]
[66,"2627","Ставропольский край","30356084","Обособленное подразделение \"Ставропольское\" АО \"ГУ ЖКХ\"","5116000922","263445001","13-05-2009 00:00:00",null,"WARM"]
[67,"2627","Ставропольский край","26355173","ПАО \"Завод Атлант\"","2607000333","260701001","26-05-1994 00:00:00",null,"WARM"]
[68,"2627","Ставропольский край","27051140","ПАО \"ОГК-2\"","2607018122","260701001","09-03-2005 00:00:00",null,"WARM"]
[69,"2627","Ставропольский край","26355219","ПАО \"Ставропольский радиозавод \"Сигнал\"","2635000092","263501001",null,null,"WARM"]
[70,"2627","Ставропольский край","26318929","ПАО \"Ставропольэнергосбыт\"","2626033550","785150001","01-04-2005 00:00:00",null,"WARM"]
[71,"2627","Ставропольский край","30438499","Санаторий им. И.М.Сеченова - НКФ ФГБУ \" НМИЦ РК\" Минздрава России","7704040281","262643002","15-03-2016 00:00:00",null,"WARM"]
[72,"2627","Ставропольский край","26816056","Северо-Кавказская дирекция по тепловодоснабжению структурное подразделение Центральной дирекции по тепловодоснабжению - филиала ОАО \"РЖД\"","7708503727","616745019",null,null,"WARM"]
[73,"2627","Ставропольский край","26322297","Северо-Кавказский филиал ООО \"Газпром энерго\"","7736186950","263602001","27-07-1998 00:00:00",null,"WARM"]
[74,"2627","Ставропольский край","28980134","УФСБ России по Ставропольскому краю","2634025295","263401001",null,null,"WARM"]
[75,"2627","Ставропольский край","30923515","ФГБУ \"Центральное жилищно-коммунальное управление\" Министерства обороны РФ","7729314745","616543001","14-11-2002 00:00:00",null,"WARM"]
[76,"2627","Ставропольский край","26355217","ФГКУ \"МСЧ УФСБ России по Ставропольскому краю\" (филиал в г. Кисловодске)","2633005786","263301001",null,null,"WARM"]
[77,"2627","Ставропольский край","26416944","Филиал \"Невинномысская ГРЭС\" ПАО \"Энел Россия\"","6671156423","263102001","27-10-2004 00:00:00",null,"WARM"]
[78,"2627","Ставропольский край","31062737","Филиал АО НПО «Микроген» в г. Ставрополь «Аллерген»","7722422237","263443001","01-01-2018 00:00:00",null,"WARM"]
[79,"2627","Ставропольский край","26416974","Филиал ПАО \"ОГК-2\"-Ставропольская ГРЭС","2607018122","260702001","09-03-2005 00:00:00",null,"WARM"]

{"sheet":"modClassifierValidate","index":36,"n_rows":0,"n_cols":0,"rows_kept":0,"cut":false,"hidden":true,"merged":[]}

{"sheet":"modHyp","index":37,"n_rows":0,"n_cols":0,"rows_kept":0,"cut":false,"hidden":true,"merged":[]}

{"sheet":"modfrmDateChoose","index":38,"n_rows":0,"n_cols":0,"rows_kept":0,"cut":false,"hidden":true,"merged":[]}

{"sheet":"modComm","index":39,"n_rows":0,"n_cols":0,"rows_kept":0,"cut":false,"hidden":true,"merged":[]}

{"sheet":"modThisWorkbook","index":40,"n_rows":0,"n_cols":0,"rows_kept":0,"cut":false,"hidden":true,"merged":[]}

{"sheet":"REESTR_MO","index":41,"n_rows":202,"n_cols":4,"rows_kept":202,"cut":false,"hidden":true,"merged":[]}
["№","МР","МО","МО_ОКТМО"]
[1,"Александровский муниципальный район","Александровский муниципальный район","07602000"]
[2,"Александровский муниципальный район","Александровский сельсовет","07602402"]
[3,"Александровский муниципальный район","Калиновский сельсовет","07602407"]
[4,"Александровский муниципальный район","Круглолесский сельсовет","07602410"]
[5,"Александровский муниципальный район","Новокавказский сельсовет","07602413"]
[6,"Александровский муниципальный район","Саблинский сельсовет","07602416"]
[7,"Александровский муниципальный район","Село Грушевское","07602404"]
[8,"Александровский муниципальный район","Село Северное","07602419"]
[9,"Александровский муниципальный район","Средненский сельсовет","07602422"]
[10,"Андроповский муниципальный район","Андроповский муниципальный район","07632000"]
[11,"Андроповский муниципальный район","Водораздельный сельсовет","07632402"]
[12,"Андроповский муниципальный район","Казинский сельсовет","07632406"]
[13,"Андроповский муниципальный район","Красноярский сельсовет","07632407"]
[14,"Андроповский муниципальный район","Курсавский сельсовет","07632410"]
[15,"Андроповский муниципальный район","Куршавский сельсовет","07632412"]
[16,"Андроповский муниципальный район","Новоянкульский сельсовет","07632414"]
[17,"Андроповский муниципальный район","Село Крымгиреевское","07632408"]
[18,"Андроповский муниципальный район","Село Султан","07632419"]
[19,"Андроповский муниципальный район","Солуно-Дмитриевский сельсовет","07632416"]
[20,"Андроповский муниципальный район","Станица Воровсколесская","07632404"]
[21,"Андроповский муниципальный район","Янкульский сельсовет","07632422"]
[22,"Апанасенковский муниципальный район","Айгурский сельсовет","07605402"]
[23,"Апанасенковский муниципальный район","Апанасенковский муниципальный район","07605000"]
[24,"Апанасенковский муниципальный район","Дербетовский сельсовет","07605416"]
[25,"Апанасенковский муниципальный район","Село Апанасенковское","07605404"]
[26,"Апанасенковский муниципальный район","Село Белые Копани","07605407"]
[27,"Апанасенковский муниципальный район","Село Воздвиженское","07605410"]
[28,"Апанасенковский муниципальный район","Село Вознесеновское","07605413"]
[29,"Апанасенковский муниципальный район","Село Дивное","07605419"]
[30,"Апанасенковский муниципальный район","Село Киевка","07605422"]
[31,"Апанасенковский муниципальный район","Село Малая Джалга","07605425"]
[32,"Апанасенковский муниципальный район","Село Манычское","07605428"]
[33,"Апанасенковский муниципальный район","Село Рагули","07605431"]
[34,"Арзгирский муниципальный район","Арзгирский муниципальный район","07607000"]
[35,"Арзгирский муниципальный район","Арзгирский сельсовет","07607402"]
[36,"Арзгирский муниципальный район","Новоромановский сельсовет","07607404"]
[37,"Арзгирский муниципальный район","Село Каменная Балка","07607403"]
[38,"Арзгирский муниципальный район","Село Петропавловское","07607407"]
[39,"Арзгирский муниципальный район","Село Родниковское","07607410"]
[40,"Арзгирский муниципальный район","Село Садовое","07607413"]
[41,"Арзгирский муниципальный район","Село Серафимовское","07607416"]
[42,"Арзгирский муниципальный район","Чограйский сельсовет","07607422"]
[43,"Благодарненский","Благодарненский","07705000"]
[44,"Будённовский муниципальный район","Архиповский сельсовет","07612404"]
[45,"Будённовский муниципальный район","Будённовский муниципальный район","07612000"]
[46,"Будённовский муниципальный район","Город Буденновск","07612101"]
[47,"Будённовский муниципальный район","Искровский сельсовет","07612407"]
[48,"Будённовский муниципальный район","Краснооктябрьский сельсовет","07612409"]
[49,"Будённовский муниципальный район","Новожизненский сельсовет","07612410"]
[50,"Будённовский муниципальный район","Орловский сельсовет","07612413"]
[51,"Будённовский муниципальный район","Покойненский сельсовет","07612416"]
[52,"Будённовский муниципальный район","Преображенский сельсовет","07612420"]
[53,"Будённовский муниципальный район","Село Архангельское","07612402"]
[54,"Будённовский муниципальный район","Село Прасковея","07612419"]
[55,"Будённовский муниципальный район","Село Толстово-Васюковское","07612427"]
[56,"Будённовский муниципальный район","Стародубский сельсовет","07612422"]
[57,"Будённовский муниципальный район","Терский сельсовет","07612425"]
[58,"Будённовский муниципальный район","Томузловский сельсовет","07612429"]
[59,"Георгиевский","Георгиевский","07707000"]
[60,"Город Лермонтов","Город Лермонтов","07718000"]
[61,"Город Невинномысск","Город Невинномысск","07724000"]
[62,"Город Ставрополь","Город Ставрополь","07701000"]
[63,"Город-курорт Ессентуки","Город-курорт Ессентуки","07710000"]
[64,"Город-курорт Железноводск","Город-курорт Железноводск","07712000"]
[65,"Город-курорт Кисловодск","Город-курорт Кисловодск","07715000"]
[66,"Город-курорт Пятигорск","Город-курорт Пятигорск","07727000"]
[67,"Грачёвский муниципальный район","Грачёвский муниципальный район","07617000"]
[68,"Грачёвский муниципальный район","Грачевский сельсовет","07617404"]
[69,"Грачёвский муниципальный район","Красный сельсовет","07617407"]
[70,"Грачёвский муниципальный район","Кугультинский сельсовет","07617410"]
[71,"Грачёвский муниципальный район","Село Бешпагир","07617401"]
[72,"Грачёвский муниципальный район","Село Тугулук","07617422"]
[73,"Грачёвский муниципальный район","Сергиевский сельсовет","07617413"]
[74,"Грачёвский муниципальный район","Спицевский сельсовет","07617416"]
[75,"Грачёвский муниципальный район","Старомарьевский сельсовет","07617419"]
[76,"Изобильненский","Изобильненский","07713000"]
[77,"Ипатовский","Ипатовский","07714000"]
[78,"Кировский","Кировский","07716000"]
[79,"Кочубеевский муниципальный район","Балахоновский сельсовет","07628402"]
[80,"Кочубеевский муниципальный район","Барсуковский сельсовет","07628404"]
[81,"Кочубеевский муниципальный район","Васильевский сельсовет","07628440"]
[82,"Кочубеевский муниципальный район","Вревский сельсовет","07628407"]
[83,"Кочубеевский муниципальный район","Георгиевский сельсовет","07628408"]
[84,"Кочубеевский муниципальный район","Заветненский сельсовет","07628413"]
[85,"Кочубеевский муниципальный район","Ивановский сельсовет","07628416"]
[86,"Кочубеевский муниципальный район","Казьминский сельсовет","07628419"]
[87,"Кочубеевский муниципальный район","Кочубеевский муниципальный район","07628000"]
[88,"Кочубеевский муниципальный район","Мищенский сельсовет","07628423"]
[89,"Кочубеевский муниципальный район","Надзорненский сельсовет","07628424"]
[90,"Кочубеевский муниципальный район","Новодеревенский сельсовет","07628425"]
[91,"Кочубеевский муниципальный район","Село Кочубеевское","07628422"]
[92,"Кочубеевский муниципальный район","Станица Беломечетская","07628406"]
[93,"Кочубеевский муниципальный район","Стародворцовский сельсовет","07628430"]
[94,"Кочубеевский муниципальный район","Усть-Невинский сельсовет","07628435"]
[95,"Красногвардейский муниципальный район","Коммунаровский сельсовет","07630404"]
[96,"Красногвардейский муниципальный район","Красногвардейский муниципальный район","07630000"]
[97,"Красногвардейский муниципальный район","Медвеженский сельсовет","07630413"]
[98,"Красногвардейский муниципальный район","Привольненский сельсовет","07630425"]
[99,"Красногвардейский муниципальный район","Родыковский сельсовет","07630428"]
[100,"Красногвардейский муниципальный район","Село Дмитриевское","07630402"]
[101,"Красногвардейский муниципальный район","Село Красногвардейское","07630407"]
[102,"Красногвардейский муниципальный район","Село Ладовская Балка","07630410"]
[103,"Красногвардейский муниципальный район","Село Новомихайловское","07630416"]
[104,"Красногвардейский муниципальный район","Село Покровское","07630419"]
[105,"Красногвардейский муниципальный район","Село Преградное","07630422"]
[106,"Красногвардейский муниципальный район","Штурмовский сельсовет","07630443"]
[107,"Курский муниципальный район","Балтийский сельсовет","07633402"]
[108,"Курский муниципальный район","Галюгаевский сельсовет","07633404"]
[109,"Курский муниципальный район","Кановский сельсовет","07633406"]
[110,"Курский муниципальный район","Курский муниципальный район","07633000"]
[111,"Курский муниципальный район","Курский сельсовет","07633407"]
[112,"Курский муниципальный район","Мирненский сельсовет","07633410"]
[113,"Курский муниципальный район","Полтавский сельсовет","07633413"]
[114,"Курский муниципальный район","Ростовановский сельсовет","07633416"]
[115,"Курский муниципальный район","Рощинский сельсовет","07633419"]
[116,"Курский муниципальный район","Русский сельсовет","07633422"]
[117,"Курский муниципальный район","Село Эдиссия","07633428"]
[118,"Курский муниципальный район","Серноводский сельсовет","07633425"]
[119,"Курский муниципальный район","Станица Стодеревская","07633426"]
[120,"Левокумский муниципальный район","Бургун-Маджарский сельсовет","07636402"]
[121,"Левокумский муниципальный район","Величаевский сельсовет","07636404"]
[122,"Левокумский муниципальный район","Владимировский сельсовет","07636407"]
[123,"Левокумский муниципальный район","Заринский сельсовет","07636409"]
[124,"Левокумский муниципальный район","Левокумский муниципальный район","07636000"]
[125,"Левокумский муниципальный район","Николо-Александровский сельсовет","07636413"]
[126,"Левокумский муниципальный район","Поселок Новокумский","07636414"]
[127,"Левокумский муниципальный район","Село Левокумское","07636410"]
[128,"Левокумский муниципальный район","Село Правокумское","07636416"]
[129,"Левокумский муниципальный район","Село Приозерское","07636417"]
[130,"Левокумский муниципальный район","Село Урожайное","07636422"]
[131,"Левокумский муниципальный район","Турксадский сельсовет","07636419"]
[132,"Минераловодский","Минераловодский","07721000"]
[133,"Нефтекумский","Нефтекумский","07725000"]
[134,"Новоалександровский","Новоалександровский","07726000"]
[135,"Новоселицкий муниципальный район","Журавский сельсовет","07644404"]
[136,"Новоселицкий муниципальный район","Новомаякский сельсовет","07644409"]
[137,"Новоселицкий муниципальный район","Новоселицкий муниципальный район","07644000"]
[138,"Новоселицкий муниципальный район","Поселок Щелкан","07644420"]
[139,"Новоселицкий муниципальный район","Село Долиновка","07644402"]
[140,"Новоселицкий муниципальный район","Село Китаевское","07644407"]
[141,"Новоселицкий муниципальный район","Село Новоселицкое","07644410"]
[142,"Новоселицкий муниципальный район","Село Падинское","07644412"]
[143,"Новоселицкий муниципальный район","Село Чернолесское","07644413"]
[144,"Петровский","Петровский","07731000"]
[145,"Предгорный муниципальный район","Винсадский сельсовет","07648410"]
[146,"Предгорный муниципальный район","Ессентукский сельсовет","07648413"]
[147,"Предгорный муниципальный район","Нежинский сельсовет","07648416"]
[148,"Предгорный муниципальный район","Новоблагодарненский сельсовет","07648422"]
[149,"Предгорный муниципальный район","Подкумский сельсовет","07648424"]
[150,"Предгорный муниципальный район","Поселок Мирный","07648415"]
[151,"Предгорный муниципальный район","Предгорный муниципальный район","07648000"]
[152,"Предгорный муниципальный район","Пригородный сельсовет","07648425"]
[153,"Предгорный муниципальный район","Пятигорский сельсовет","07648428"]
[154,"Предгорный муниципальный район","Станица Бекешевская","07648402"]
[155,"Предгорный муниципальный район","Станица Боргустанская","07648407"]
[156,"Предгорный муниципальный район","Суворовский сельсовет","07648431"]
[157,"Предгорный муниципальный район","Тельмановский сельсовет","07648432"]
[158,"Предгорный муниципальный район","Этокский сельсовет","07648434"]
[159,"Предгорный муниципальный район","Юцкий сельсовет","07648437"]
[160,"Предгорный муниципальный район","Яснополянский сельсовет","07648440"]
[161,"Советский","Советский","07735000"]
[162,"Степновский муниципальный район","Богдановский сельсовет","07652402"]
[163,"Степновский муниципальный район","Варениковский сельсовет","07652404"]
[164,"Степновский муниципальный район","Верхнестепновский сельсовет","07652407"]
[165,"Степновский муниципальный район","Иргаклинский сельсовет","07652410"]
[166,"Степновский муниципальный район","Ольгинский сельсовет","07652415"]
[167,"Степновский муниципальный район","Село Соломенское","07652420"]
[168,"Степновский муниципальный район","Степновский муниципальный район","07652000"]
[169,"Степновский муниципальный район","Степновский сельсовет","07652426"]
[170,"Труновский муниципальный район","Безопасненский сельсовет","07654402"]
[171,"Труновский муниципальный район","Донской сельсовет","07654404"]
[172,"Труновский муниципальный район","Кировский сельсовет","07654407"]
[173,"Труновский муниципальный район","Село Новая Кугульта","07654410"]
[174,"Труновский муниципальный район","Село Подлесное","07654413"]
[175,"Труновский муниципальный район","Труновский муниципальный район","07654000"]
[176,"Труновский муниципальный район","Труновский сельсовет","07654416"]
[177,"Туркменский муниципальный район","Владимировский сельсовет","07656401"]
[178,"Туркменский муниципальный район","Кендже-Кулакский сельсовет","07656407"]
[179,"Туркменский муниципальный район","Красноманычский сельсовет","07656410"]
[180,"Туркменский муниципальный район","Куликово-Копанский сельсовет","07656413"]
[181,"Туркменский муниципальный район","Кучерлинский сельсовет","07656416"]
[182,"Туркменский муниципальный район","Летнеставочный сельсовет","07656419"]
[183,"Туркменский муниципальный район","Новокучерлинский сельсовет","07656424"]
[184,"Туркменский муниципальный район","Овощинский сельсовет","07656426"]
[185,"Туркменский муниципальный район","Село Казгулак","07656402"]
[186,"Туркменский муниципальный район","Село Камбулат","07656404"]
[187,"Туркменский муниципальный район","Село Малые Ягуры","07656422"]
[188,"Туркменский муниципальный район","Туркменский муниципальный район","07656000"]
[189,"Шпаковский муниципальный район","Верхнерусский сельсовет","07658402"]
[190,"Шпаковский муниципальный район","Город Михайловск","07658101"]
[191,"Шпаковский муниципальный район","Деминский сельсовет","07658404"]
[192,"Шпаковский муниципальный район","Дубовский сельсовет","07658406"]
[193,"Шпаковский муниципальный район","Казинский сельсовет","07658408"]
[194,"Шпаковский муниципальный район","Надеждинский сельсовет","07658410"]
[195,"Шпаковский муниципальный район","Пелагиадский сельсовет","07658416"]
[196,"Шпаковский муниципальный район","Сенгилеевский сельсовет","07658419"]
[197,"Шпаковский муниципальный район","Станица Новомарьевская","07658413"]
[198,"Шпаковский муниципальный район","Татарский сельсовет","07658422"]
[199,"Шпаковский муниципальный район","Темнолесский сельсовет","07658425"]
[200,"Шпаковский муниципальный район","Цимлянский сельсовет","07658428"]
[201,"Шпаковский муниципальный район","Шпаковский муниципальный район","07658000"]

{"sheet":"REESTR_MO_FILTER","index":42,"n_rows":0,"n_cols":0,"rows_kept":0,"cut":false,"hidden":true,"merged":[]}

{"sheet":"modfrmReestrMR","index":43,"n_rows":0,"n_cols":0,"rows_kept":0,"cut":false,"hidden":true,"merged":[]}

{"sheet":"modServiceModule","index":44,"n_rows":0,"n_cols":0,"rows_kept":0,"cut":false,"hidden":true,"merged":[]}

{"sheet":"modfrmCheckUpdates","index":45,"n_rows":0,"n_cols":0,"rows_kept":0,"cut":false,"hidden":true,"merged":[]}

{"sheet":"REESTR_DS","index":46,"n_rows":3,"n_cols":2,"rows_kept":3,"cut":false,"hidden":true,"merged":[]}
[]
[]
[null,"Город Ставрополь, Город Ставрополь (07701000);"]

{"sheet":"REESTR_CHS","index":47,"n_rows":0,"n_cols":0,"rows_kept":0,"cut":false,"hidden":true,"merged":[]}

{"sheet":"REESTR_LINK","index":48,"n_rows":3,"n_cols":3,"rows_kept":3,"cut":false,"hidden":true,"merged":[]}
["ID","LINK_NAME","REGION"]
[4189678,"https://portal.eias.ru/Portal/DownloadPage.aspx?type=12&guid=????????-????-????-????-????????????","ALL"]
[4190415,"https://eias.fstrf.ru/disclo/get_file?p_guid=????????-????-????-????-????????????","ALL"]